bitfinex/quotes_BTCUSD_20250519
["timestamp","ask_amount","ask_price","bid_price","bid_amount"]
[1747671631099,0.05857718,104800.0,104790.0,1.75284526]
[1747671631306,0.05857718,104800.0,104790.0,1.75889576]
[1747671631514,0.05857718,104800.0,104790.0,1.76189576]
[1747671631666,0.05273935,104800.0,104790.0,1.90493576]
[1747671632047,0.05273935,104800.0,104790.0,1.91493576]
[1747671632836,0.05273935,104800.0,104790.0,1.57917576]
[1747671633054,0.05273935,104800.0,104790.0,1.91489576]
[1747671634085,0.03208112,104810.0,104800.0,0.64640539]
[1747671634290,4.063e-05,104820.0,104810.0,0.63638445]
[1747671634496,0.00051926,104820.0,104810.0,4.66392185]
[1747671634704,0.00051926,104820.0,104810.0,4.69061753]
[1747671634877,0.00051926,104820.0,104810.0,4.71923053]
[1747671635309,0.00051926,104820.0,104810.0,4.72228103]
[1747671636677,0.00051926,104820.0,104810.0,4.73170876]
[1747671637730,0.00051926,104820.0,104810.0,3.23940991]
[1747671638022,0.00051926,104820.0,104810.0,3.35337391]
[1747671638198,0.00051926,104820.0,104810.0,3.35537391]
[1747671638405,0.00051926,104820.0,104810.0,3.32867823]
[1747671638585,0.00051926,104820.0,104810.0,3.69526824]
[1747671639208,0.00051926,104820.0,104810.0,3.36058824]
[1747671639374,0.00051926,104820.0,104810.0,3.54384051]
[1747671642558,0.00051926,104820.0,104810.0,3.6602505]
[1747671642805,0.00051926,104820.0,104810.0,3.68682129]
[1747671643649,0.00204513,104830.0,104820.0,0.55942267]
[1747671643855,0.00218213,104830.0,104820.0,2.32024007]
[1747671644096,0.00218213,104830.0,104820.0,1.81859907]
[1747671645406,0.00318213,104830.0,104820.0,1.29851757]
[1747671645632,0.03328213,104830.0,104820.0,0.79726257]
[1747671645817,0.03328213,104830.0,104820.0,0.82587857]
[1747671646121,0.06478213,104830.0,104820.0,0.25108917]
[1747671646370,0.28716437,104830.0,104820.0,0.20339376]
[1747671646598,0.29372275,104830.0,104820.0,0.22247317]
[1747671646836,0.29372275,104830.0,104820.0,0.21293356]
[1747671647281,0.29372275,104830.0,104820.0,0.23201287]
[1747671647506,0.10293767,104830.0,104820.0,0.24155239]
[1747671647732,0.09637973,104830.0,104820.0,0.24155239]
[1747671648351,0.08684066,104830.0,104820.0,0.24155239]
[1747671648570,0.03328213,104830.0,104820.0,2.61040679]
[1747671648789,0.00318213,104830.0,104820.0,2.61040679]
[1747671648979,0.00318213,104830.0,104820.0,2.28040279]
[1747671650545,0.00318213,104830.0,104820.0,2.31350279]
[1747671651674,0.00318213,104830.0,104820.0,2.34360279]
[1747671652528,0.00318213,104830.0,104820.0,1.66388979]
[1747671653256,0.00318213,104830.0,104820.0,1.72046275]
[1747671653949,4.407e-05,104840.0,104830.0,0.21940174]
[1747671654154,4.407e-05,104840.0,104830.0,0.43379914]
[1747671654371,4.407e-05,104840.0,104830.0,0.42098614]
[1747671655234,0.00304407,104840.0,104830.0,0.42098614]
[1747671655466,0.00304407,104840.0,104830.0,0.42403664]
[1747671656521,0.00304407,104840.0,104830.0,0.45264964]
[1747671656765,0.06664407,104840.0,104830.0,0.42403664]
[1747671656989,0.06664407,104840.0,104830.0,0.50403664]
[1747671657646,0.00304407,104840.0,104830.0,0.50403664]
[1747671658122,0.00304407,104840.0,104830.0,0.56283248]
[1747671658343,0.00304407,104840.0,104830.0,0.59144548]
[1747671658797,0.00220046,104850.0,104840.0,0.55938081]
[1747671659023,0.00220046,104850.0,104840.0,0.65669021]
[1747671659684,0.06600046,104850.0,104840.0,0.65669021]
[1747671660536,0.06900046,104850.0,104840.0,0.65974071]
[1747671661215,0.07200046,104850.0,104840.0,0.65974071]
[1747671661438,0.09107413,104850.0,104840.0,0.56243131]
[1747671661875,0.1006112,104850.0,104840.0,0.56243131]
[1747671662098,0.1006112,104850.0,104840.0,0.55289361]
[1747671662339,0.1006112,104850.0,104840.0,0.5719691]
[1747671662539,0.11014845,104850.0,104840.0,0.36212599]
[1747671662721,0.1131291,104850.0,104840.0,0.55289287]
[1747671663054,0.31341521,104850.0,104840.0,0.5624314]
[1747671663262,0.11014845,104850.0,104840.0,0.5624314]
[1747671663444,0.1131291,104850.0,104840.0,0.5719691]
[1747671663962,0.07293855,104850.0,104840.0,0.5719691]
[1747671664167,0.24461356,104850.0,104840.0,0.0030505]
[1747671664373,0.76303873,104850.0,104840.0,0.0030505]
[1747671664611,0.76303873,104850.0,104840.0,0.0077753]
[1747671664817,0.43391291,104850.0,104840.0,0.0077753]
[1747671665035,0.86034813,104850.0,104840.0,0.0077753]
[1747671665449,0.53122231,104850.0,104840.0,0.0077753]
[1747671666428,0.43391291,104850.0,104840.0,0.0077753]
[1747671667015,0.46681291,104850.0,104840.0,0.19854218]
[1747671667233,0.46681291,104850.0,104840.0,0.20808043]
[1747671667690,0.27453291,104850.0,104840.0,0.21761859]
[1747671667895,0.27453291,104850.0,104840.0,0.21643822]
[1747671668105,0.27453291,104850.0,104840.0,0.22597629]
[1747671668519,0.08378377,104850.0,104840.0,0.23551427]
[1747671668726,0.08378377,104850.0,104840.0,0.2450516]
[1747671668945,0.08378349,104850.0,104840.0,0.2450516]
[1747671669173,0.006,104850.0,104840.0,0.2450516]
[1747671669635,0.01553661,104850.0,104840.0,0.3099516]
[1747671670108,0.04414744,104850.0,104840.0,0.2450516]
[1747671670330,0.03461028,104850.0,104840.0,0.2450516]
[1747671670543,0.03461019,104850.0,104840.0,0.2450516]
[1747671670745,0.04414726,104850.0,104840.0,0.2450516]
[1747671670972,0.23787702,104850.0,104840.0,0.22597602]
[1747671671197,0.27148593,104850.0,104840.0,0.00659493]
[1747671672011,0.46376593,104850.0,104840.0,0.00659493]
[1747671672244,0.2158229,104850.0,104840.0,0.22597601]
[1747671672451,0.20628593,104850.0,104840.0,0.00659493]
[1747671674142,0.20628593,104850.0,104840.0,0.0077753]
[1747671674879,0.17519953,104850.0,104840.0,0.0077753]
[1747671675187,0.17818017,104850.0,104840.0,0.0077753]
[1747671675594,0.21088017,104850.0,104840.0,0.0077753]
[1747671675804,0.20789953,104850.0,104840.0,0.0077753]
[1747671677492,0.23899953,104850.0,104840.0,0.0077753]
[1747671677739,0.33630893,104850.0,104840.0,0.0077753]
[1747671678347,0.6799756,104850.0,104840.0,0.0077753]
[1747671680094,0.26550504,104840.0,104830.0,0.08659494]
[1747671680461,0.55509444,104840.0,104830.0,0.08659494]
[1747671681598,0.88422026,104840.0,104830.0,0.08659494]
[1747671681820,0.88422026,104840.0,104830.0,0.00659494]
[1747671683345,0.88422026,104840.0,104830.0,0.0030505]
[1747671683538,0.26550504,104840.0,104830.0,0.0030505]
[1747671683748,0.45746504,104840.0,104830.0,0.0030505]
[1747671684978,0.88390026,104840.0,104830.0,0.0030505]
[1747671687024,0.88390026,104840.0,104830.0,0.0830505]
[1747671687817,0.55477444,104840.0,104830.0,0.0030505]
[1747671688437,0.45746504,104840.0,104830.0,0.0030505]
[1747671688758,0.39226504,104840.0,104830.0,0.0030505]
[1747671689863,0.01907567,104840.0,104830.0,0.63339112]
[1747671690069,0.01907567,104840.0,104830.0,0.62739714]
[1747671690070,0.2318996,104840.0,104830.0,0.62739714]
[1747671690274,0.22891878,104840.0,104830.0,0.63693593]
[1747671690980,0.20984311,104840.0,104830.0,0.54691927]
[1747671691188,0.20984311,104840.0,104830.0,0.55645843]
[1747671691808,0.20984311,104840.0,104830.0,0.5659975]
[1747671691976,0.20984311,104840.0,104830.0,0.6459975]
[1747671692864,0.20984311,104840.0,104830.0,0.65553593]
[1747671693072,0.01907549,104840.0,104830.0,0.7177352]
[1747671693272,0.04113235,104840.0,104830.0,0.7177352]
[1747671693507,0.03159419,104840.0,104830.0,0.71891556]
[1747671693680,0.02861337,104840.0,104830.0,0.71891556]
[1747671693883,0.03815144,104840.0,104830.0,0.71891556]
[1747671694083,0.01907549,104840.0,104830.0,0.71891556]
[1747671694281,0.02861347,104840.0,104830.0,0.71891556]
[1747671695618,0.01907549,104840.0,104830.0,0.71891556]
[1747671695756,0.38623412,104850.0,104840.0,0.21938127]
[1747671696154,0.38623412,104850.0,104840.0,0.22891915]
[1747671696971,0.38623412,104850.0,104840.0,0.23669445]
[1747671698143,0.38823412,104850.0,104840.0,0.23669445]
[1747671698640,0.38823412,104850.0,104840.0,0.24623215]
[1747671698772,0.38823412,104850.0,104840.0,0.23669445]
[1747671699965,0.38823412,104850.0,104840.0,0.21761859]
[1747671701595,0.38823412,104850.0,104840.0,0.20808052]
[1747671701769,0.38823412,104850.0,104840.0,0.21761868]
[1747671702529,0.19627412,104850.0,104840.0,0.21761868]
[1747671702755,0.44299696,104850.0,104840.0,0.0077753]
[1747671702952,0.25103696,104850.0,104840.0,0.0077753]
[1747671703318,0.44299696,104850.0,104840.0,0.00659458]
[1747671704086,0.45753781,104850.0,104840.0,0.00659458]
[1747671704289,0.55484721,104850.0,104840.0,0.00659458]
[1747671704490,0.88397303,104850.0,104840.0,0.00659458]
[1747671704690,0.55484721,104850.0,104840.0,0.00659458]
[1747671705560,0.88397303,104850.0,104840.0,0.00659458]
[1747671706023,0.55484721,104850.0,104840.0,0.0030505]
[1747671706575,0.55494721,104850.0,104840.0,0.0030505]
[1747671715765,0.55466721,104850.0,104840.0,0.0030505]
[1747671719453,0.49036721,104850.0,104840.0,0.0030505]
[1747671719659,0.55446721,104850.0,104840.0,0.0030505]
[1747671720794,0.88359303,104850.0,104840.0,0.0030505]
[1747671720999,0.89027963,104850.0,104840.0,0.0030505]
[1747671721405,0.36947381,104850.0,104840.0,0.0030505]
[1747671721603,0.49705381,104850.0,104840.0,0.0030505]
[1747671721803,0.30537381,104850.0,104840.0,0.0030505]
[1747671722097,0.48251296,104850.0,104840.0,0.0030505]
[1747671722297,0.38520356,104850.0,104840.0,0.0030505]
[1747671722508,0.37851696,104850.0,104840.0,0.0030505]
[1747671724263,0.37851696,104850.0,104840.0,0.0342505]
[1747671724477,0.37851696,104850.0,104840.0,0.0665505]
[1747671725607,0.37851696,104850.0,104840.0,0.26685572]
[1747671725819,0.37851696,104850.0,104840.0,0.0665505]
[1747671726620,0.37851696,104850.0,104840.0,0.07009458]
[1747671726820,0.37851696,104850.0,104840.0,0.02009458]
[1747671728476,0.20030504,104840.0,104830.0,0.13133323]
[1747671728862,0.20984311,104840.0,104830.0,0.14087221]
[1747671729263,0.20030504,104840.0,104830.0,0.13614741]
[1747671729687,0.19076688,104840.0,104830.0,0.11706936]
[1747671729885,0.19374767,104840.0,104830.0,0.14956936]
[1747671730490,0.19076688,104840.0,104830.0,0.14956936]
[1747671730692,0.19076688,104840.0,104830.0,0.16864713]
[1747671730892,0.19076688,104840.0,104830.0,0.15910834]
[1747671731694,0.19076688,104840.0,104830.0,0.19030834]
[1747671732249,0.19076688,104840.0,104830.0,0.53030834]
[1747671732456,0.19076688,104840.0,104830.0,0.53503314]
[1747671732844,0.19374767,104840.0,104830.0,0.33694644]
[1747671733148,0.19374767,104840.0,104830.0,0.53727068]
[1747671734218,0.19374767,104840.0,104830.0,0.33694644]
[1747671734429,0.25546688,104840.0,104830.0,0.0047248]
[1747671735175,0.20032424,104830.0,104820.0,0.21188271]
[1747671735597,0.20986322,104830.0,104820.0,0.002]
[1747671735883,0.24186322,104830.0,104820.0,0.002]
[1747671736309,0.27196322,104830.0,104820.0,0.002]
[1747671736611,0.27196322,104830.0,104820.0,0.005]
[1747671738088,0.20986322,104830.0,104820.0,0.005]
[1747671738292,0.20986322,104830.0,104820.0,0.20534335]
[1747671738501,0.20986322,104830.0,104820.0,0.28642285]
[1747671738704,0.21940247,104830.0,104820.0,0.28642285]
[1747671738927,0.02861675,104830.0,104820.0,0.29596256]
[1747671739271,0.20121788,104840.0,104830.0,0.21940174]
[1747671739481,0.22983172,104840.0,104830.0,0.28140174]
[1747671739716,0.02861347,104840.0,104830.0,0.28140174]
[1747671739861,0.04113248,104840.0,104830.0,0.28140174]
[1747671740258,0.05067073,104840.0,104830.0,0.28140174]
[1747671741159,0.05067073,104840.0,104830.0,0.28612654]
[1747671742310,0.18483687,104850.0,104830.0,0.62612654]
[1747671742501,0.02871111,104850.0,104840.0,0.62238062]
[1747671742740,0.01917386,104850.0,104840.0,0.62238062]
[1747671742914,0.21945979,104850.0,104840.0,0.64913193]
[1747671743191,0.0001,104850.0,104840.0,0.64913193]
[1747671743430,0.0001,104850.0,104840.0,0.89919133]
[1747671743669,0.0021,104850.0,104840.0,1.27593133]
[1747671743894,4.696e-05,104860.0,104850.0,0.62235988]
[1747671744128,4.696e-05,104860.0,104850.0,4.41511728]
[1747671744357,0.0336646,104880.0,104870.0,0.55931805]
[1747671744567,0.23389342,104880.0,104870.0,0.63755723]
[1747671744770,0.23403692,104880.0,104870.0,0.67384388]
[1747671744974,0.21496888,104880.0,104870.0,0.34]
[1747671745181,0.21496888,104880.0,104870.0,0.54329689]
[1747671745384,0.19589975,104880.0,104870.0,0.53376128]
[1747671746000,0.19589975,104880.0,104870.0,0.54329689]
[1747671746242,0.19589975,104880.0,104870.0,0.55283241]
[1747671746459,0.2102129,104880.0,104870.0,0.55283241]
[1747671746897,0.2102129,104880.0,104870.0,0.00304897]
[1747671747120,0.2725129,104880.0,104870.0,0.00304897]
[1747671747340,0.00620563,104880.0,104870.0,0.38277642]
[1747671747552,0.00520563,104880.0,104870.0,0.56236702]
[1747671747765,0.00520563,104880.0,104870.0,1.61464842]
[1747671747970,0.00520563,104880.0,104870.0,1.59255042]
[1747671749243,0.00520563,104880.0,104870.0,1.55550842]
[1747671749475,0.00530563,104880.0,104870.0,1.55550842]
[1747671749682,0.00530563,104880.0,104870.0,0.72377642]
[1747671750072,0.00530563,104880.0,104870.0,0.95681442]
[1747671750430,0.00530563,104880.0,104870.0,0.72377642]
[1747671750633,0.00530563,104880.0,104870.0,1.28706142]
[1747671752080,0.00530563,104880.0,104870.0,1.12394142]
[1747671752285,0.00530563,104880.0,104870.0,0.66067642]
[1747671753679,0.01483951,104880.0,104870.0,0.56807042]
[1747671753999,0.01483951,104880.0,104870.0,0.57760585]
[1747671754000,0.08787385,104880.0,104870.0,0.57760585]
[1747671754156,0.03390837,104880.0,104870.0,0.57760585]
[1747671754362,0.03390828,104880.0,104870.0,0.57760585]
[1747671754564,0.00530563,104880.0,104870.0,0.57760585]
[1747671754786,0.02437367,104880.0,104870.0,0.57760585]
[1747671754990,0.01483951,104880.0,104870.0,1.72975925]
[1747671755166,0.00530563,104880.0,104870.0,1.26872725]
[1747671755392,0.00530563,104880.0,104870.0,1.33012725]
[1747671758967,0.00530563,104880.0,104870.0,1.37222725]
[1747671759477,0.00530563,104880.0,104870.0,1.47877517]
[1747671759682,0.00530563,104880.0,104870.0,1.48408117]
[1747671760343,0.00212729,104890.0,104880.0,0.28069713]
[1747671760562,0.00217509,104890.0,104880.0,2.51751853]
[1747671760743,0.00217509,104890.0,104880.0,1.67451953]
[1747671760917,0.00217509,104890.0,104880.0,1.36016153]
[1747671761151,0.00217509,104890.0,104880.0,0.56858553]
[1747671761380,0.00217509,104890.0,104880.0,0.31660653]
[1747671761547,0.00217509,104890.0,104880.0,0.32435203]
[1747671762041,0.00417509,104890.0,104880.0,0.32435203]
[1747671762468,0.01370816,104890.0,104880.0,0.32435203]
[1747671762619,0.03517509,104890.0,104880.0,0.32435203]
[1747671762825,0.03527509,104890.0,104880.0,0.32435203]
[1747671763421,0.00227509,104890.0,104880.0,0.32435203]
[1747671764192,0.0840415,104890.0,104880.0,0.31481797]
[1747671764364,0.10608821,104890.0,104880.0,0.22704273]
[1747671764515,0.09655442,104890.0,104880.0,0.23657679]
[1747671764711,0.10608812,104890.0,104880.0,0.57657679]
[1747671765137,0.29676406,104890.0,104880.0,0.57657679]
[1747671765337,0.10310872,104890.0,104880.0,0.57657679]
[1747671765625,0.27769775,104890.0,104880.0,0.3477455]
[1747671765834,0.27471825,104890.0,104880.0,0.55750893]
[1747671766042,0.27471825,104890.0,104880.0,0.56704345]
[1747671766251,0.27471825,104890.0,104880.0,0.0077455]
[1747671766422,0.26518473,104890.0,104880.0,0.0077455]
[1747671766636,0.26518473,104890.0,104880.0,0.20797423]
[1747671766838,0.26518473,104890.0,104880.0,0.21750875]
[1747671767286,0.26518473,104890.0,104880.0,0.22704318]
[1747671767795,0.26518473,104890.0,104880.0,0.23188099]
[1747671768806,0.01180852,104890.0,104880.0,0.24141505]
[1747671769033,0.01478789,104890.0,104880.0,0.24141505]
[1747671769428,0.22453078,104890.0,104880.0,0.23188099]
[1747671769606,0.04040899,104890.0,104880.0,0.24141505]
[1747671769815,0.03385466,104890.0,104880.0,0.24141505]
[1747671770222,0.26626439,104890.0,104880.0,0.24141524]
[1747671770380,0.09477529,104890.0,104880.0,0.24141479]
[1747671770586,0.09775466,104890.0,104880.0,0.24611086]
[1747671771975,0.03385466,104890.0,104880.0,0.24611086]
[1747671772379,0.01478762,104890.0,104880.0,0.58611086]
[1747671772602,0.03385448,104890.0,104880.0,0.58611086]
[1747671772793,0.04338809,104890.0,104880.0,0.58611086]
[1747671773030,0.04338809,104890.0,104880.0,0.58141433]
[1747671773412,0.23406403,104890.0,104880.0,0.58141433]
[1747671773624,0.24061836,104890.0,104880.0,0.57188027]
[1747671773832,0.27311899,104890.0,104880.0,0.57188027]
[1747671774036,0.30411899,104890.0,104880.0,0.34304897]
[1747671774178,0.27551852,104890.0,104880.0,0.00304897]
[1747671774393,0.27551852,104890.0,104880.0,0.20327761]
[1747671774586,0.27551852,104890.0,104880.0,0.19374309]
[1747671774828,0.26598482,104890.0,104880.0,0.19374309]
[1747671775027,0.26598482,104890.0,104880.0,0.21281213]
[1747671776298,0.00227509,104890.0,104880.0,0.23188053]
[1747671776506,0.03087447,104890.0,104880.0,0.26388053]
[1747671776708,0.03087447,104890.0,104880.0,0.29598053]
[1747671776906,0.02134113,104890.0,104880.0,0.63598053]
[1747671777135,0.09216448,104900.0,104890.0,0.2192765]
[1747671777339,0.29235512,104900.0,104890.0,0.2192765]
[1747671777559,0.29235512,104900.0,104890.0,0.20974325]
[1747671777699,0.28282269,104900.0,104890.0,0.21927668]
[1747671777906,0.28282269,104900.0,104890.0,0.22881002]
[1747671778112,0.21932269,104900.0,104890.0,0.22881002]
[1747671778364,0.25222269,104900.0,104890.0,0.22881002]
[1747671778593,0.25222269,104900.0,104890.0,0.23185899]
[1747671779083,0.22132269,104900.0,104890.0,0.23185899]
[1747671779282,0.25132269,104900.0,104890.0,0.23185899]
[1747671779485,0.28302269,104900.0,104890.0,0.22232565]
[1747671779707,0.2639572,104900.0,104890.0,0.00304897]
[1747671780633,0.2639572,104900.0,104890.0,0.00777454]
[1747671784137,0.2639572,104900.0,104890.0,0.19845048]
[1747671784350,0.44538432,104900.0,104890.0,0.00777454]
[1747671786792,0.54269372,104900.0,104890.0,0.00777454]
[1747671786999,0.87181954,104900.0,104890.0,0.00277454]
[1747671787203,0.28439741,104880.0,104870.0,0.34]
[1747671787454,0.27486325,104880.0,104870.0,0.56702822]
[1747671787690,0.27486325,104880.0,104870.0,0.5574927]
[1747671787900,0.26532882,104880.0,104870.0,0.56702831]
[1747671788308,0.26532882,104880.0,104870.0,0.57956374]
[1747671789397,0.26532882,104880.0,104870.0,0.58909908]
[1747671789603,0.27486325,104880.0,104870.0,0.59863433]
[1747671789830,0.21960065,104890.0,104880.0,0.21929705]
[1747671790021,0.21960065,104890.0,104880.0,0.55929705]
[1747671790221,0.2635572,104900.0,104890.0,0.20020955]
[1747671790427,0.46408999,104900.0,104890.0,0.20020955]
[1747671790576,0.27308999,104900.0,104890.0,0.20020955]
[1747671790783,0.47362251,104900.0,104890.0,0.20020955]
[1747671791211,0.46408999,104900.0,104890.0,0.20020955]
[1747671791606,0.46608999,104900.0,104890.0,0.20020955]
[1747671792213,0.46408999,104900.0,104890.0,0.20974307]
[1747671792413,0.40078999,104900.0,104890.0,0.20974307]
[1747671792869,0.46368999,104900.0,104890.0,0.20020973]
[1747671793228,0.4541572,104900.0,104890.0,0.20020973]
[1747671793887,0.00953343,104890.0,104880.0,0.55929622]
[1747671794136,0.01251283,104890.0,104880.0,2.80177299]
[1747671794329,0.02204617,104890.0,104880.0,2.80177299]
[1747671794539,0.03157978,104890.0,104880.0,2.80177299]
[1747671794948,0.03157942,104890.0,104880.0,2.80377299]
[1747671795167,0.00953316,104890.0,104880.0,2.80477299]
[1747671795407,0.0190665,104890.0,104880.0,2.83667299]
[1747671795626,0.02860011,104890.0,104880.0,2.80477299]
[1747671795841,0.0190665,104890.0,104880.0,2.80477299]
[1747671796049,0.02860002,104890.0,104880.0,2.77791899]
[1747671796264,0.041113,104890.0,104880.0,2.76838584]
[1747671796474,0.22225578,104890.0,104880.0,2.7588515]
[1747671796687,0.25207641,104890.0,104880.0,2.45728618]
[1747671796897,0.02860047,104890.0,104880.0,2.4763544]
[1747671797105,0.03157987,104890.0,104880.0,2.4763544]
[1747671798032,0.2317896,104890.0,104880.0,2.4763544]
[1747671798242,0.2906102,104890.0,104880.0,2.45728618]
[1747671799310,0.02860047,104890.0,104880.0,2.47940308]
[1747671799523,0.27309187,104900.0,104890.0,0.22880966]
[1747671799727,0.27309187,104900.0,104890.0,0.25554243]
[1747671799728,0.06306656,104900.0,104890.0,0.25554243]
[1747671799913,0.00959872,104900.0,104890.0,0.25554243]
[1747671800202,0.02866376,104900.0,104890.0,0.25554243]
[1747671800653,0.01913115,104900.0,104890.0,0.25859111]
[1747671800819,0.02866385,104900.0,104890.0,0.25859111]
[1747671801020,0.02866376,104900.0,104890.0,0.25859111]
[1747671801224,0.23183365,104900.0,104890.0,0.24905795]
[1747671801394,0.2288544,104900.0,104890.0,0.24905813]
[1747671801598,0.03819664,104900.0,104890.0,0.26812472]
[1747671801804,0.2288544,104900.0,104890.0,0.26812472]
[1747671802427,0.21942224,104900.0,104890.0,0.2395247]
[1747671802651,0.27228981,104900.0,104890.0,0.24905849]
[1747671803098,0.2627572,104900.0,104890.0,0.02978145]
[1747671803606,0.2627572,104900.0,104890.0,0.22999118]
[1747671803741,0.2627572,104900.0,104890.0,0.03931524]
[1747671803937,0.25322432,104900.0,104890.0,0.22999118]
[1747671805334,0.25322432,104900.0,104890.0,0.02978145]
[1747671806929,0.25322432,104900.0,104890.0,0.23952479]
[1747671807636,0.25322432,104900.0,104890.0,0.24905831]
[1747671808466,0.25322432,104900.0,104890.0,0.25859174]
[1747671808813,0.25322432,104900.0,104890.0,0.24905831]
[1747671809845,0.28182233,104900.0,104890.0,0.25859156]
[1747671810051,0.28182233,104900.0,104890.0,0.25859174]
[1747671810261,0.28182233,104900.0,104890.0,0.26812454]
[1747671810262,0.25102233,104900.0,104890.0,0.26812454]
[1747671811158,0.25102233,104900.0,104890.0,0.25859129]
[1747671811573,0.2414899,104900.0,104890.0,0.24905795]
[1747671811779,0.2744899,104900.0,104890.0,0.24600927]
[1747671812178,0.2744899,104900.0,104890.0,0.23647584]
[1747671812931,0.2744899,104900.0,104890.0,0.25554261]
[1747671813477,0.2744899,104900.0,104890.0,0.23647584]
[1747671813783,0.2744899,104900.0,104890.0,0.24600927]
[1747671814246,0.2744899,104900.0,104890.0,0.25554261]
[1747671815783,0.2744899,104900.0,104890.0,0.24600927]
[1747671816993,0.2744899,104900.0,104890.0,0.250736]
[1747671817138,0.2744899,104900.0,104890.0,0.26026934]
[1747671819062,0.2744899,104900.0,104890.0,0.250736]
[1747671819707,0.2744899,104900.0,104890.0,0.26980259]
[1747671819930,0.2744899,104900.0,104890.0,0.26980214]
[1747671820201,0.2744899,104900.0,104890.0,0.26507541]
[1747671820379,0.2744899,104900.0,104890.0,0.25554225]
[1747671821098,0.2744899,104900.0,104890.0,0.02673277]
[1747671821534,0.05206677,104890.0,104880.0,0.55929705]
[1747671821741,0.06457995,104890.0,104880.0,1.65025277]
[1747671821945,0.06457922,104890.0,104880.0,1.65025277]
[1747671822137,0.07411283,104890.0,104880.0,1.65025277]
[1747671822703,0.07411283,104890.0,104880.0,1.46260277]
[1747671822916,0.07411283,104890.0,104880.0,1.46360277]
[1747671823554,0.02859974,104890.0,104880.0,1.46360277]
[1747671823755,0.03813335,104890.0,104880.0,1.46360277]
[1747671823920,0.04111283,104890.0,104880.0,1.46360277]
[1747671824136,0.04111283,104890.0,104880.0,1.27290865]
[1747671824539,0.04111283,104890.0,104880.0,1.46358623]
[1747671824894,0.07131283,104890.0,104880.0,1.46358623]
[1747671827428,0.2832558,104890.0,104880.0,0.36975266]
[1747671827627,0.28027632,104890.0,104880.0,0.56998139]
[1747671827840,0.28027632,104890.0,104880.0,0.343]
[1747671828038,0.27074307,104890.0,104880.0,0.54322882]
[1747671828234,0.27074307,104890.0,104880.0,0.55276343]
[1747671828434,0.27074307,104890.0,104880.0,0.56703023]
[1747671829183,0.27074307,104890.0,104880.0,0.55749571]
[1747671829395,0.27074307,104890.0,104880.0,0.56703023]
[1747671829623,0.27074307,104890.0,104880.0,0.57656466]
[1747671829875,0.08960092,104890.0,104880.0,0.57656466]
[1747671830089,0.28325637,104890.0,104880.0,0.586099]
[1747671830323,0.28027686,104890.0,104880.0,0.58609846]
[1747671830557,0.28027686,104890.0,104880.0,0.5765643]
[1747671830799,0.28027686,104890.0,104880.0,0.58609855]
[1747671831182,0.28027686,104890.0,104880.0,0.5860981]
[1747671831970,0.28027686,104890.0,104880.0,0.57656394]
[1747671832169,0.28027686,104890.0,104880.0,0.56702969]
[1747671832856,0.28027686,104890.0,104880.0,0.57656385]
[1747671834439,0.28027686,104890.0,104880.0,0.6033167]
[1747671834655,0.28027686,104890.0,104880.0,0.59378254]
[1747671834855,0.28027686,104890.0,104880.0,0.60331679]
[1747671835128,0.28027686,104890.0,104880.0,0.59858451]
[1747671835341,0.08006713,104890.0,104880.0,0.60811857]
[1747671835543,0.08304665,104890.0,104880.0,0.60811857]
[1747671835749,0.28325629,104890.0,104880.0,0.60811857]
[1747671835970,0.28027677,104890.0,104880.0,0.60811857]
[1747671836675,0.28981056,104890.0,104880.0,0.60811857]
[1747671838184,0.061,104890.0,104880.0,0.59858451]
[1747671838391,0.0001,104890.0,104880.0,1.42532157]
[1747671838561,0.0001,104890.0,104880.0,1.55503097]
[1747671840206,0.0001,104890.0,104880.0,1.56494549]
[1747671840538,0.0001,104890.0,104880.0,1.64494549]
[1747671840741,0.42707516,104920.0,104910.0,0.20017138]
[1747671841166,0.03648236,104920.0,104910.0,0.21923433]
[1747671841372,0.00998601,104920.0,104910.0,0.21923433]
[1747671841546,0.02859201,104920.0,104910.0,0.21923433]
[1747671841735,0.01906113,104920.0,104910.0,0.21923433]
[1747671841936,0.03159192,104920.0,104900.0,0.24210552]
[1747671842163,0.01253043,104920.0,104900.0,0.39901705]
[1747671842338,0.02212176,104920.0,104900.0,0.39901705]
[1747671842558,0.03165228,104920.0,104900.0,0.39901705]
[1747671842781,0.42601952,104930.0,104910.0,0.20017156]
[1747671843022,0.2096831,104920.0,104910.0,0.20017156]
[1747671843229,0.2116831,104920.0,104910.0,0.20970344]
[1747671843430,0.2116831,104920.0,104910.0,0.20017156]
[1747671843836,0.2116831,104920.0,104910.0,0.00953197]
[1747671843990,0.00953134,104910.0,104900.0,0.71091492]
[1747671844232,0.01906259,104910.0,104900.0,1.02402973]
[1747671844671,0.0190625,104910.0,104900.0,1.02402973]
[1747671845206,0.02859393,104910.0,104900.0,0.99937173]
[1747671846000,0.03059393,104910.0,104900.0,0.99937173]
[1747671846227,0.03059393,104910.0,104900.0,0.9570327]
[1747671846398,0.23076621,104910.0,104900.0,0.4683094]
[1747671846638,0.23076675,104910.0,104900.0,0.66849986]
[1747671846842,0.22123478,104910.0,104900.0,0.66849986]
[1747671847050,0.2117029,104910.0,104900.0,0.71123265]
[1747671847254,0.2117029,104910.0,104900.0,0.72547832]
[1747671847460,0.002,104910.0,104900.0,2.56701032]
[1747671847662,0.01153125,104910.0,104900.0,2.60320296]
[1747671847865,0.002,104910.0,104900.0,2.45604496]
[1747671849962,0.002,104910.0,104900.0,2.57198368]
[1747671851032,0.002,104910.0,104900.0,2.59861773]
[1747671851242,0.00260301,104930.0,104920.0,0.25161353]
[1747671851459,0.00260301,104930.0,104920.0,2.58433193]
[1747671851667,0.00260301,104930.0,104920.0,1.68459393]
[1747671851873,0.00260301,104930.0,104920.0,1.88171393]
[1747671852308,0.00260301,104930.0,104920.0,2.02459393]
[1747671852529,0.00460301,104930.0,104920.0,2.02459393]
[1747671852742,0.00460301,104930.0,104920.0,2.02930708]
[1747671852971,0.00260301,104930.0,104920.0,2.05950708]
[1747671853365,0.00260301,104930.0,104920.0,1.91662708]
[1747671854041,0.00260301,104930.0,104920.0,2.05950708]
[1747671855771,0.00260301,104930.0,104920.0,2.08607764]
[1747671856798,0.00260301,104930.0,104920.0,2.05950708]
[1747671856988,0.00260301,104930.0,104920.0,2.09292276]
[1747671857168,0.00260301,104930.0,104920.0,2.0683648]
[1747671857546,0.05691474,104960.0,104950.0,0.55915087]
[1747671857734,0.06648944,104960.0,104950.0,0.55915087]
[1747671858641,0.06648944,104960.0,104950.0,0.56219759]
[1747671858849,0.06848944,104960.0,104950.0,0.56219759]
[1747671859819,0.07801651,104960.0,104950.0,0.56219759]
[1747671860031,0.06848944,104960.0,104950.0,0.56219759]
[1747671860205,0.07801651,104960.0,104950.0,0.56219759]
[1747671860860,0.06172812,104960.0,104950.0,0.56219759]
[1747671861048,0.07125519,104960.0,104950.0,0.56219759]
[1747671861274,0.08078244,104960.0,104950.0,0.56219759]
[1747671861432,0.11108244,104960.0,104950.0,0.56219759]
[1747671861635,0.09202857,104960.0,104950.0,0.56219759]
[1747671861852,0.10155582,104960.0,104950.0,0.56219759]
[1747671862306,0.09202857,104960.0,104950.0,0.56219759]
[1747671863227,0.10155591,104960.0,104950.0,0.55266988]